Cogmind - Beta 17.1 @@@ ROGUE MODE // 2026.09.01 @ 22:14:53 Player: UnderDoug Result: Destroyed by G-47 Trooper with Particle Gun Performance ------------- Evolutions (2) 1000 Regions Visited (4) 800 Robots Destroyed (47) 235 Value Destroyed (1529) 1529 Prototype IDs (5) 100 Alien Tech Used (0) 0 Bonus (24) 24 TOTAL SCORE: 3688 Bonus ------- High Alert Combat Kills 28 Follower Combat Kills 33 Friendly Fire -37 Cogmind --------- Core Integrity 0/550 Matter 143/300 Energy 159/290 System Corruption 5% Temperature Hot (290) Movement Walking (315) Ox3 Location -8/Storage Parts ------- > --- POWER (2) -------- Light Ion Engine Improved Ion Engine > --- PROPULSION (4) --- Light Treads Aluminum Leg Compact Wheel > --- UTILITY (3) ------ Large Storage Unit Signal Interpreter Light Regenerative Plating > --- WEAPON (2) ------- Heavy Assault Rifle > --- INVENTORY (15) --- Heat Sink Improved Sensor Array Light Armor Plating Light Armor Plating V3-11A's Pendant Mining Laser Peak State ------------ > --- POWER ------------ Reinforced Ion Engine Reinforced Ion Engine > --- PROPULSION ------- Aerolev Unit Aerolev Unit Aerolev Unit Aerolev Unit > --- UTILITY ---------- Large Storage Unit Improved Sensor Array Signal Interpreter > --- WEAPON ----------- Spread Laser Chainsword > --- INVENTORY -------- Advanced Treads Improved Aluminum Leg Improved Aluminum Leg Improved Aluminum Leg Carbon-fiber Leg Compact Wheel Improved Heat Sink Reaction Control System V3-11A's Pendant Spread Laser Grenade Launcher Mining Laser [Rating: 33] Favorites ----------- Power Reinforced Ion Engine Engine Reinforced Ion Engine Power Core Light Nuclear Core Propulsion Aluminum Leg Treads Light Treads Leg Aluminum Leg Wheel Compact Wheel Hover Unit Aerolev Unit Utility Large Storage Unit Device V3-11A's Pendant Storage Large Storage Unit Processor Signal Interpreter Protection Light Armor Plating Weapon Light Assault Rifle Energy Gun Spread Laser Ballistic Gun Light Assault Rifle Launcher Grenade Launcher Special Weapon Mining Laser Slashing Weapon Chainsword Build | -11 -10 -10 -8 -8 ------- Run | Yrd Mat Sub Mat Sto Slots Evolved 4 | . . . 4 . Power 1 | . . . 1 . Propulsion 2 | . . . 2 . Utility 1 | . . . 1 . Weapon . | . . . . . Parts Attached 70 | 6 10 5 25 24 Power 14 | 1 2 . 7 4 Engine 10 | 1 2 . 4 3 Core 4 | . . . 3 1 Reactor . | . . . . . Propulsion 28 | 2 3 2 10 11 Treads 2 | . . . . 2 Leg 21 | 2 3 2 10 4 Wheel 1 | . . . . 1 Hover 4 | . . . . 4 Flight . | . . . . . Utility 14 | 1 3 1 3 6 Device 6 | . 1 1 3 1 Storage 2 | 1 1 . . . Processor 3 | . . . . 3 Hackware . | . . . . . Protection 3 | . 1 . . 2 Artifact . | . . . . . Weapon 14 | 2 2 2 5 3 Energy Gun 3 | . . . 2 1 Energy Cannon . | . . . . . Ballistic Gun 7 | 2 1 1 1 2 Ballistic Cannon . | . . . . . Launcher 1 | . . . 1 . Special Weapon 2 | . 1 1 . . Impact Weapon . | . . . . . Slashing Weapon 1 | . . . 1 . Piercing Weapon . | . . . . . Special Melee Weapon . | . . . . . Unidentified Prototypes 3 | . . 1 . 2 Parts Lost 31 | . 1 . 8 22 Power 7 | . . . 3 4 Propulsion 13 | . . . 3 10 Utility 4 | . . . 1 3 Weapon 7 | . 1 . 1 5 Highest Loss Streak 16 | . 1 . 6 16 To Critical Strikes . | . . . . . Average Backups 13 | 3 11 14 14 9 Power 2 | . 2 3 2 . Propulsion 4 | 2 4 5 3 3 Utility 3 | . 1 4 4 3 Weapon 2 | . 2 2 3 2 Tool/Special . | . . . . . Unused Backups 13 | . 5 . 5 3 Power 3 | . 1 . 2 . Propulsion 5 | . 4 . 1 . Utility 5 | . . . 2 3 Weapon . | . . . . . Tool/Special . | . . . . . Average Slot Usage (%) 98 | . 99 100 99 93 Engine 13 | . 14 14 11 13 Core 2 | . . . 6 3 Leg 29 | . 28 28 35 20 Hover 1 | . . . . 12 Device 11 | . 4 14 17 3 Storage 11 | . 14 14 9 9 Processor 1 | . . . . 11 Protection 2 | . 9 . . 2 Energy Gun 1 | . . . 1 6 Ballistic Gun 18 | . 27 21 11 6 Special Weapon 2 | . . 6 . . Slashing Weapon 1 | . . . 4 2 Peak Build Rating 33 | 6 10 14 31 33 Average Rating 16 | 4 8 12 24 23 On Entrance 10 | . 6 10 14 23 Avg Prop Armor Cover (%) 12 | . . . . 12 Naked Turns . | . . . . . Heaviest Build 49 | 10 35 35 48 49 Greatest Support 54 | 20 20 20 54 54 Greatest Overweight (x) 9 | 2 1 1 1 9 Average Overweight (x) . | . . 1 . . Largest Inventory Capacity 15 | 8 15 15 15 15 Average Capacity 14 | 7 12 15 15 15 Most Carried 15 | 6 15 15 15 15 Average Carried 13 | 3 11 14 14 9 Final Capacity 15 | 8 15 15 15 15 Final Carried 15 | 6 15 15 10 6 Class Distribution -------------------- 94% | Mutant 5% | Scavenger-Mutant Dominant Class ---------------- Mutant | -10/Materials Mutant | -10/Subcaves Mutant | -8/Materials Scavenger-Mutant | -8/Storage Resources | -11 -10 -10 -8 -8 ----------- Run | Yrd Mat Sub Mat Sto Matter Collected 1390 | 257 142 80 463 448 Remotely . | . . . . . Salvage Created 1404 | . 207 59 670 468 Parts 92 | . 7 3 61 21 Haulers Intercepted . | . . . . . Recyclers Shooed 1 | . . . . 1 Parts Field Recycled . | . . . . . Retrieved Matter . | . . . . . Parts Self-Destructed 5 | . . 5 . . Prevented . | . . . . . Parts Restored . | . . . . . Kills | -11 -10 -10 -8 -8 ------- Run | Yrd Mat Sub Mat Sto Combat Hostiles Destroyed 40 | . 4 1 23 12 Melee 4 | . . . 4 . Guns 20 | . 4 1 8 7 AOE 16 | . . . 11 5 Classes Destroyed 9 | . 2 1 6 . Worker 2 | . . . 1 1 Builder 2 | . . . 2 . Recycler 1 | . . . 1 . Watcher 2 | . 1 . 1 . Swarmer 11 | . . . 11 . Grunt 18 | . 4 . 7 7 Sentry 8 | . . . 4 4 Hunter 2 | . . . 1 1 Subdweller 1 | . . 1 . . Best Kill Streak 8 | . 4 1 8 5 Combat Bots Only 7 | . 4 1 7 5 Max Kills in Single Turn 3 | . 1 1 3 2 Gunslinging . | . . . . . Exploded 3 | . . . 3 2 Melee 1 | . . . 1 . Uniques/NPCs Destroyed . | . . . . . Combat | -11 -10 -10 -8 -8 -------- Run | Yrd Mat Sub Mat Sto Hostile Shots Fired 366 | . 23 7 168 168 Missed 70 | . 1 . 40 29 Hits 296 | . 22 7 128 139 Melee 4 | . . . 4 . Projectile 292 | . 22 7 124 139 Critical Strikes 10 | . . . 4 6 Damage Taken 4303 | . 318 184 1787 2014 Core 604 | . 18 30 253 303 Absorbed by Shields . | . . . . . Regen/Repaired (Parts) 34 | . . . . 34 Core Remaining (%) 90 | 100 . 80 . . Volleys Fired 200 | . 27 50 80 43 Largest 2 | . 2 2 2 2 Hottest 130 | . 100 100 85 130 Shots Fired 282 | . 50 55 105 72 Gun 223 | . 49 10 96 68 Cannon . | . . . . . Launcher 13 | . . . 9 4 Special 46 | . 1 45 . . Kinetic 180 | . 49 10 80 41 Thermal 89 | . 1 45 16 27 Explosive 13 | . . . 9 4 Electromagnetic . | . . . . . Robot Hit Streak 18 | . 10 7 8 18 Robot Miss Streak 5 | . 4 1 5 4 Penetration Max . | . . . . . Secondary Targets 1 | . . . . 1 Max Gunslinging Chain 1 | . . . . 1 Shots Hit Robots 169 | . 31 9 71 58 Core Hits 141 | . 16 4 73 48 Critical Kills . | . . . . . Critical Parts Destroyed . | . . . . . Critical Strikes 4 | . . . 1 3 Burn 1 | . . . . 1 Sever 3 | . . . 1 2 Melee Attacks 23 | . . . 20 3 Impact . | . . . . . Slashing 23 | . . . 20 3 Piercing . | . . . . . Sneak Attacks . | . . . . . Combat Hostiles . | . . . . . Follow-up Attacks . | . . . . . Damage Inflicted 3656 | . 246 95 2175 1140 Guns 1699 | . 246 71 680 702 Cannons . | . . . . . Explosions 1438 | . . . 1114 324 Melee 486 | . . . 378 108 Ramming 9 | . . . 3 6 Kinetic 1132 | . 246 71 452 363 Thermal 704 | . . 24 341 339 Explosive 1325 | . . . 1001 324 Electromagnetic . | . . . . . Impact . | . . . . . Slashing 486 | . . . 378 108 Piercing . | . . . . . Highest Corruption 5 | . . . 5 5 Average Corruption 5 | . . . 5 5 Corruption Purged . | . . . . . Corruption Blocked . | . . . . . Effects 38 | . . . 21 17 Message Errors 6 | . . . 5 1 Matter Fused 10 | . . . 4 6 Heat Flow Errors 5 | . . . 3 2 Energy Discharges 6 | . . . 5 1 Data Loss (minor) 5 | . . . 3 2 Data Loss (major) 2 | . . . . 2 Misfires 1 | . . . . 1 Alerts 2 | . . . 1 1 Weapon Failures 1 | . . . . 1 Overload Shots . | . . . . . Overflow Damage 124 | . . . 112 12 Projectiles . | . . . . . Explosions 124 | . . . 112 12 Melee . | . . . . . Knockbacks . | . . . . . Impact . | . . . . . Kinetic . | . . . . . Secondary . | . . . . . Self-Inflicted Damage 60 | . . . 15 45 Shots 3 | . . . 1 2 Rammed 1 | . . . . 1 Targets Rammed 2 | . . . 1 1 Kicked 1 | . . . 1 . Crushed . | . . . . . Highest Temperature 515 | . 112 . 380 515 Average Temperature 138 | . 41 . 90 224 Received Heat Transfer 1833 | . 177 . 693 963 Effects 16 | . . . 4 12 Shutdowns 9 | . . . 3 6 Energy Bleed 2 | . . . . 2 Matter Decay 1 | . . . . 1 Short Circuit 1 | . . . . 1 Damage (minor) 2 | . . . 1 1 Damage (major) 1 | . . . . 1 Siege Activations . | . . . . . Martial Activations . | . . . . . Shielding Activations . | . . . . . Robots Disrupted . | . . . . . Combat Hostiles . | . . . . . Robots Corrupted . | . . . . . Combat Hostiles . | . . . . . Parts Fried . | . . . . . Impact Corruptions . | . . . . . Robots Melted . | . . . . . Combat Hostiles . | . . . . . Parts Melted 1 | . . . . 1 Heat Transferred 1011 | . . 50 335 626 Parts Sabotaged . | . . . . . Parts Stolen . | . . . . . Parts Stripped . | . . . . . Power Chain Reactions . | . . . . . Alert | -11 -10 -10 -8 -8 ------- Run | Yrd Mat Sub Mat Sto Maximum Alert Level 2 | . . . 2 1 Low Security (%) 94 | 100 100 . 93 80 Level 1 3 | . . . 1 19 Level 2 2 | . . . 4 . Level 3 . | . . . . . Level 4 . | . . . . . Level 5 . | . . . . . High Security . | . . . . . Max Security . | . . . . . Peak Influence 473 | . 90 . 473 235 Initial 193 | . . . . 193 Average 51 | . 9 . 45 169 Influence Increases 1393 | . 145 . 856 392 Destroy 0b10 Robot/C 840 | . 80 . 520 240 Destroy 0b10 Robot/NC 40 | . 5 . 30 5 Destroy Leader 196 | . 22 . 114 60 Allied During Kill 3 | . . . 3 . Successful Hack 38 | . 7 . 10 21 Disable Machine 45 | . . . 45 . Destroy Structure 96 | . 1 . 74 21 Lose Combat Pursuer 135 | . 30 . 60 45 Influence Decreases 1282 | . 145 . 397 740 Entered New Map 266 | . . . . 266 Time Decay 706 | . 135 . 317 254 Lost Part 310 | . 10 . 80 220 Squads Dispatched 7 | . 1 . 4 2 Investigation . | . . . . . Extermination . | . . . . . Reinforcement 7 | . 1 . 4 2 Assault . | . . . . . Garrison . | . . . . . Intercept . | . . . . . Searches Triggered . | . . . . . Construction Impeded 1 | . . . 1 . Haulers Reinforced . | . . . . . Active Scanning Responses . | . . . . . Cargo Convoy Interrupts . | . . . . . Stealth | -11 -10 -10 -8 -8 --------- Run | Yrd Mat Sub Mat Sto Distress Signals 6 | . . . 1 5 Communications Jammed . | . . . . . Distress Signals . | . . . . . Times Spotted 75 | . 10 1 43 21 Peak Tracking Total 9 | . 4 1 9 6 Tactical Retreats 7 | . 1 . 4 2 Traps | -11 -10 -10 -8 -8 ------- Run | Yrd Mat Sub Mat Sto Traps Triggered 1 | . . 1 . . Indirectly . | . . . . . Trap Hack Attempts . | . . . . . Triggered . | . . . . . Disarmed 6 | . 6 . . . Reprogrammed . | . . . . . Reused . | . . . . . Traps Extracted . | . . . . . Installed . | . . . . . Triggered . | . . . . . Machines | -11 -10 -10 -8 -8 ---------- Run | Yrd Mat Sub Mat Sto Machines Disabled 4 | . . 1 3 . Max in Single Turn 3 | . . 1 3 . Garrison Access 1 | . . . 1 . Machines Repaired . | . . . . . Machines Dismantled . | . . . . . Machines Sabotaged . | . . . . . Overloaded Fab Kills . | . . . . . Hacking | -11 -10 -10 -8 -8 --------- Run | Yrd Mat Sub Mat Sto Machines Accessed 19 | . 7 . 8 4 Terminals 14 | . 6 . 5 3 Fabricators . | . . . . . Repair Stations . | . . . . . Recycling Units 2 | . 1 . . 1 Scanalyzers 2 | . . . 2 . Garrison Access 1 | . . . 1 . Total Hacks 42 | . 11 . 21 10 Successful 23 | . 6 . 11 6 Failed 18 | . 5 . 9 4 Catastrophic 2 | . 1 . 1 . Database Lockouts 1 | . . . 1 . Manual . | . . . . . Terminals 29 | . 10 . 12 7 Fabricators . | . . . . . Repair Stations . | . . . . . Recycling Units 4 | . 1 . . 3 Scanalyzers 7 | . . . 7 . Garrison Access 2 | . . . 2 . Terminal Hacks 15 | . 5 . 6 4 Record 2 | . . . 2 . Prototype ID Bank 1 | . . . 1 . Open Door 2 | . . . . 2 Branch Access Points 1 | . . . . 1 Emergency Access Points 3 | . 1 . 2 . Alert Level 2 | . 1 . . 1 Locate Traps 1 | . 1 . . . Disarm Traps 1 | . 1 . . . Maintenance Status 1 | . 1 . . . Zone Layout 1 | . . . 1 . Fabricator Hacks . | . . . . . Repair Station Hacks . | . . . . . Recycling Unit Hacks 3 | . 1 . . 2 Report Inventory 2 | . 1 . . 1 Retrieve Components 1 | . . . . 1 Scanalyzer 4 | . . . 4 . Insert Component 1 | . . . 1 . Analyze 1 | . . . 1 . Retrieve Study 2 | . . . 2 . Garrison Access Hacks 1 | . . . 1 . Seal Access 1 | . . . 1 . Unauthorized Hacks . | . . . . . Terminals . | . . . . . Fabricators . | . . . . . Repair Stations . | . . . . . Recycling Units . | . . . . . Scanalyzers . | . . . . . Garrison Access . | . . . . . Data Cores Recovered . | . . . . . Used . | . . . . . Hacking Detections 13 | . 6 . 6 1 Full Trace Events 1 | . 1 . . . Feedback Events . | . . . . . Feedback Blocked . | . . . . . Robot Schematics Acquired . | . . . . . Robots Built . | . . . . . Authchips . | . . . . . Time . | . . . . . Total Robot Build Rating . | . . . . . Part Schematics Acquired 1 | . . . 1 . Parts Built . | . . . . . Authchips . | . . . . . Time . | . . . . . Total Part Build Rating . | . . . . . Part Studies Acquired 2 | . . . 2 . Parts Repaired . | . . . . . Time . | . . . . . Parts Recycled . | . . . . . Recycled Matter . | . . . . . Retrieved Matter . | . . . . . Retrieved Components 2 | . . . . 2 Parts Scanalyzed 1 | . . . 1 . Part Schematics Acquired 1 | . . . 1 . Parts Damaged . | . . . . . Bothacking | -11 -10 -10 -8 -8 ------------ Run | Yrd Mat Sub Mat Sto Used RIF Installer . | . . . . . Robots Hacked . | . . . . . Non-combat . | . . . . . Combat . | . . . . . Robot Hacks Applied . | . . . . . Relay Couplers Released . | . . . . . Fabnet Peak Effective % . | . . . . . Robots Rewired . | . . . . . Allies Hacked . | . . . . . Hacks Repelled . | . . . . . Allies | -11 -10 -10 -8 -8 -------- Run | Yrd Mat Sub Mat Sto Total Allies 2 | . . 2 . . Largest Group 2 | . . 2 2 . Highest-Rated Group 38 | . . 38 38 . Highest-Rated Ally 19 | . . 19 19 . Total Orders . | . . . . . Ally Attacks 37 | . . . 37 . Total Damage 508 | . . . 508 . Kills 4 | . . . 4 . Allies Corrupted . | . . . . . Allies Melted . | . . . . . Intel | -11 -10 -10 -8 -8 ------- Run | Yrd Mat Sub Mat Sto Active Infowar (turns) 2120 | . 395 349 1280 96 Optics 2 | . . . . 2 Sensors 2120 | . 395 349 1280 96 Robot Analysis Total . | . . . . . Derelict Logs Recovered 1 | . . 1 . . Drone Launches . | . . . . . Drone Recoveries . | . . . . . Exploration | -11 -10 -10 -8 -8 ------------- Run | Yrd Mat Sub Mat Sto Turns Passed 4934 | 60 1264 1656 1397 557 Spaces Moved 2314 | 37 591 754 685 247 Core 14 | 12 . . . 2 Treads . | . . . . . Legs 2215 | 25 591 754 685 160 Wheels . | . . . . . Hover 85 | . . . . 85 Flight . | . . . . . Fastest Speed 50 | 50 120 190 108 98 Average Speed 155 | 121 155 190 132 120 Slowest Speed 500 | 150 190 190 190 500 Overloaded Moves . | . . . . . Propulsion Burnouts . | . . . . . Robots Hopped . | . . . . . Potential Cave-ins . | . . . . . Cave-ins Triggered . | . . . . . Exploration Rate (%) 39 | 3 71 19 62 40 Regions Visited 4 Branch Regions 2 Pre-discovered Areas . | . . . . . Known Exits Taken . | . . . . . Unknown Exits Taken 4 | 1 1 1 1 . Scrap Searched 8 | . . 8 . . Spaces Dug 1 | . 1 . . . Terrain Destroyed 109 | . 1 . 83 25 Melee . | . . . . . Projectile 1 | . 1 . . . AOE 108 | . . . 83 25 Terrain Rammed . | . . . . . Walls Destroyed . | . . . . . Machines Disabled . | . . . . . Actions | -11 -10 -10 -8 -8 --------- Run | Yrd Mat Sub Mat Sto Total 3265 | 49 899 833 1061 423 Wait 543 | . 240 22 205 76 Move 2310 | 36 590 753 684 247 Hop . | . . . . . Pick Up 56 | 7 18 1 13 17 Fast Attach 14 | 5 1 1 4 3 Attach 32 | 1 1 . 10 20 Detach 1 | . . . . 1 Swap 46 | . 9 4 22 11 Drop 38 | . 13 2 22 1 Fire 200 | . 27 50 80 43 Melee 23 | . . . 20 3 Ram 1 | . . . . 1 Kick 1 | . . . 1 . Crush . | . . . . . Escape Stasis . | . . . . . Rewire . | . . . . . Trap . | . . . . . Miscellaneous . | . . . . . Route ------- -11/Scrapyard -10/Materials (discovered 4 exits: [*Mat x2] / [*Min] / [*Sub]) -10/Subcaves -8/Materials (discovered 3 exits: [*Fac] / *Sto x2) -8/Storage (discovered 1 exit: Rec) History --------- Turn | Location | Event 26 | -11/Scrapyard | Discovered new exit (range 16) 61 | -11/Scrapyard | Entered Materials 309 | -10/Materials | Build established: Mutant 402 | -10/Materials | Discovered new exit (range 10) 573 | -10/Materials | Discovered new exit (range 9) 728 | -10/Materials | Discovered new exit (range 13) 1304 | -10/Materials | Discovered new exit (range 11) 1325 | -10/Materials | Entered Subcaves 1409 | -10/Subcaves | Discovered new exit (range 6) 1661 | -10/Subcaves | Visited triangular shrine 1673 | -10/Subcaves | Found Prototype Device 1674 | -10/Subcaves | Identified V3-11A's Pendant 1679 | -10/Subcaves | Befriended Subdweller 1751 | -10/Subcaves | A swath of the cavern ceiling suddenly collapsed 1859 | -10/Subcaves | Learned Materials security intel 2239 | -10/Subcaves | Befriended Subdweller 2981 | -10/Subcaves | Entered Materials 2981 | -8/Materials | Accompanied by 2 allies 2981 | -8/Materials | Evolved 4 slots: Power x1, Propulsion x2, Utility x1 3016 | -8/Materials | Central database locked down 3150 | -8/Materials | Discovered new exit (range 16) 3287 | -8/Materials | Discovered new exit (range 13) 4301 | -8/Materials | Discovered new exit (range 15) 4332 | -8/Materials | Destroyed 7 combat bots 4378 | -8/Materials | Entered Storage 4407 | -8/Storage | Lost 6 parts (1p3n1u1w) 4598 | -8/Storage | Core integrity fell below 50% 4641 | -8/Storage | Core integrity fell below 20% 4694 | -8/Storage | Lost 16 parts (3p7n3u3w) 4828 | -8/Storage | Found Prototype Protection 4829 | -8/Storage | Identified Lgt. Regenerative Plating 4852 | -8/Storage | Identified exit to Recycling 4935 | -8/Storage | Destroyed by G-47 Trooper with Particle Gun Last Messages --------------- System corrupted: Matter fused (-6). W-25 Informer sends out distress signal. K-01 Serf destroyed. K-01 Serf collects debris. Imp. Aluminum Leg destroyed. K-01 Serf collects debris. System corrupted: Heat flow error (+250). K-01 Serf collects debris. System corrupted: Matter fused (-7). K-01 Serf collects debris. Aluminum Leg+ destroyed. K-01 Serf collects debris. Critical hit (Burn: +37). Overheating: Energy bleed (-46). EWXZJ1HVFU= BSVK9U9,JE&L/5CPRV S%WLU,VL Lgt. Nuclear Core destroyed. Imp. Aluminum Leg destroyed. G-47 Trooper destroyed. Switching to secondary target: G-47 Trooper. Assault Rifle destroyed. Map ----- +----------------------------------------------------+ | | | | | | | | | | | | | | | | | | | | | | | | | | | | | | | | | ????????????????????????????????????????????? | | ????????????????????????????????????????????? | | ????????????????????????????????????????????? | | ????????????????????????????????????????????? | | ????????????????????????????????????????????? | | ????????????????????????????????????????????? | | ????????????????????????????????????????????? | | ????????#########???????????????????????????? | | ????????# ###########????????????????? | | ????????# kg%@ o #????????????????? | | ????????# ######### #????????????????? | | ????????# ! !%=????????# #????????????????? | | ????? + =??######## #????????????????? | | ????# # ! ??# # #????????????????? | | ????# ??# ???# # ##### ?"" | | ????????# ???# """ + | | ????????# ????# """ # ########??????? | | ????????######????# """ # #??????????????# | | ??????????????????# # #??????????????# | | ??????????????????##T##/## #??????????????# | | ???????????????????##?# #??????????????# | | ?????????????????####?# #??????????????# | | ?????????????????# T## #????????###???# | | ?????????????????# # #?????#### ##### | | ?????????????????# + #?????# # | | ?????????????????# # #?????# ]]] # | | ?????????????????# ## ####### ]]] # | | ?????????????????####?# ! + ]] # | | ??????????????????????####"####### + | | ????????????????????????#T #?????# # | | ????????????????????????## #?????# " " ##+ | | ?????????????????????????# #?????# "R" # | | ?????????????????????????###?????# """ # | | ?????????????????????????????????########## | +----------------------------------------------------+ Best States ------------- Heat Dissipation 45 Energy Generation 23 Energy Capacity 440 Matter Stores 300 Matter Capacity 300 Sight Range 16 Robot Scan Range 15 Terrain Scan Density 85 Armor Coverage 150 Evasion (%) 55 Item Schematics ----------------- Imp. Aluminum Leg | -8/Materials | Scanalyzed Robot Schematics ------------------ None Fabricated ------------ Nothing Repaired ---------- Nothing Studied --------- Aluminum Leg | -8/Materials | Hacked Rnf. Ion Engine | -8/Materials | Hacked Alien Tech Used ----------------- None Achievements -------------- None Challenges ------------ None Game ------ Seed FlakSapperReconfigurator Manual? 0 Play Time 00:41:45 Cumulative 15.3 hours Start 2026.09.01 @ 21:34:08 End 2026.09.01 @ 22:14:53 Sessions 1 Manual Loads 0 Difficulty Rogue Special Mode None Game No. 30 Rogue 30 Adventurer 0 Explorer 0 Win Type - Total 0 Types 0/0/0/0/0/0/0/0/0/0 Lore% 24 Gallery% 16 Achievement% 15 Wizard Run 0 Options --------- Layout 1 ASCII 0 Keyboard 0 Movement Mouse Keybinds 0 Fullscreen 2 Font 24/X11 Map View 50x35 Zoom Use 0% Tactical HUD 0 Map Filters NONE Filters NONE Steam 1 RUN: 8ddf98fb-7f4c-412e-8464-c62a9066e73b